[Event "3rd VIZAG GM-Open 2022"]
[Site "Visakapatnam"]
[Date "2022.06.13"]
[Round "3.14"]
[White "Venkata, Krishna Karthik K"]
[Black "Nikitenko, Mihail"]
[Result "0-1"]
[ECO "B12"]
[WhiteElo "1903"]
[BlackElo "2479"]
[Annotator "TA"]
[PlyCount "70"]
[EventDate "2022.06.13"]
[EventType "swiss"]
[EventCountry "IND"]
[SourceTitle "playchess.com"]
[Source "ChessBase"]
[SourceQuality "1"]
[TimeControl "5400+30"]

{[%evp 9,70,23,23,2,24,24,24,24,18,22,24,14,14,16,18,0,9,5,10,3,31,35,39,-93,-70,-79,-33,-164,-164,-164,-166,-165,-173,-173,-164,-168,-170,-162,-150,-151,-163,-155,-158,-136,-130,-182,-175,-189,-174,-211,-182,-238,-223,-222,-168,-153,-137,-322,-323,-306,-310,-283,-270]} 1. e4 {[%emt 1:31:00]} c6 {[%emt 1:31:00]} 2. d4 {[%emt 0:00:30]} d5 {[%emt 0:00:30]} 3. e5 {[%emt 0:00:30]} c5 {[%emt 0:00:30]} 4. dxc5 {[%emt 0:00:30]} e6 {[%emt 0:00:30]} 5. Nf3 {[%emt 0:00:30]} Bxc5 {[%emt 0:00:30]} 6. Bd3 {[%emt 0:00:30] B12: Caro-Kann: Advance Variation.} Ne7 $1 {[%emt 0:00:30][%mdl 4] is currently scoring better than 6...Nc6.} 7. O-O {[%emt 0:00:30]} Ng6 {[%emt 0:00:30]} 8. Nbd2 {[%emt 0:00:30] White has an edge.} Nc6 {[%emt 0:00:30]} 9. Nb3 {[%emt 0:00:30] [#] Black must now prevent Bxg6.} Bb6 {[%emt 0:00:30]} 10. Re1 {[%emt 0:00:30]} O-O {[%emt 0:00:30]} 11. Be3 {[%emt 0:00:30]} Bc7 {[%emt 0:00:30]} 12. Bd4 {[%emt 0:00:30]} Nxd4 {[%emt 0:00:30]} 13. Nbxd4 {[%emt 0:00:30]} Nf4 {[%emt 0:00:30]} 14. Bf1 {[%emt 0:00:30] [#]} f6 $146 {[%emt 0:00:30]} (14... Ng6 $5 {[%cal Rf7f6]}) ({Predecessor:} 14... Ng6 15. g3 Ne7 16. a3 Nc6 17. c4 Bb6 18. cxd5 exd5 19. Rc1 Nxd4 20. Nxd4 Be6 {½-½ (30) Alderisio,P (2428)-Andeer,S (2474) ICCF email 2014}) 15. g3 {[%emt 0:00:30]} Ng6 {[%emt 0:00:30][%cal Rf6e5]} 16. exf6 {[%emt 0:00:30]} (16. Bh3 $14 {was the only good move.}) 16... Qxf6 $17 {[%emt 0:00:30] And now ...e5 would win.} 17. Bg2 $1 {[%emt 0:00:30]} Bb6 {[%emt 0:00:30]} (17... Bd7 $17 {Strongly threatening ...Rad8.} 18. Bh3 Ne5) 18. c3 {[%emt 0:00:30] White is now going downhill.} (18. Nb3 $15) 18... e5 $36 {[%emt 0:00:30][%mdl 2048] Black has strong initiative.} 19. Nc2 {[%emt 0:00:30]} Bg4 {[%emt 0:00:30]} 20. Qxd5+ {[%emt 0:00:30]} Kh8 {[%emt 0:00:30][%cal Rg4f3]} 21. Qxb7 {[%emt 0:00:30]} Rab8 {[%emt 0:00:30]} 22. Qe4 {[%emt 0:00:30]} Bxf3 {[%emt 0:00:30]} 23. Bxf3 {[%emt 0:00:30]} Qxf3 {[%emt 0:00:30]} 24. Qxf3 {[%emt 0:00:30]} Rxf3 {[%emt 0:00:30]} 25. Re2 {[%emt 0:00:30]} Rbf8 {[%emt 0:00:30][%cal Rf3f2]} 26. Rf1 {[%emt 0:00:30]} h5 {[%emt 0:00:30][%cal Bh7h5,Bh5h4][%mdl 32]} 27. Ne1 {[%emt 0:00:30]} (27. Na3 $17) 27... R3f6 {[%emt 0:00:30][%cal Oe5e4]} 28. Kg2 {[%emt 0:00:30]} h4 {[%emt 0:00:30]} 29. Nd3 {[%emt 0:00:30]} Rf5 {[%emt 0:00:30]} 30. f3 {[%emt 0:00:30]} (30. c4 $142) 30... Rd8 {[%emt 0:00:30]} 31. Nf2 {[%emt 0:00:30]} hxg3 {[%emt 0:00:30]} 32. hxg3 {[%emt 0:00:30]} Rg5 {[%emt 0:00:30]} 33. Nh3 {[%emt 0:00:30] [#]} (33. Kh2 $17) 33... Nf4+ $1 {[%emt 0:00:30] Black has a decisive advantage.} 34. Nxf4 {[%emt 0:00:30]} exf4 {[%emt 0:00:30]} 35. g4 {[%emt 0:00:30]} Be3 {[%emt 0:00:30] Weighted Error Value: White=0.30/Black=0.06 (flawless)} 0-1

[Event "3rd VIZAG GM-Open 2022"]
[Site "Visakapatnam"]
[Date "2022.06.13"]
[Round "3.15"]
[White "Mirzoev, Azer"]
[Black "Praveen K B"]
[Result "1-0"]
[ECO "D11"]
[WhiteElo "2476"]
[BlackElo "1574"]
[Annotator "TA"]
[PlyCount "49"]
[EventDate "2022.06.13"]
[EventType "swiss"]
[EventCountry "IND"]
[SourceTitle "playchess.com"]
[Source "ChessBase"]
[SourceQuality "1"]
[TimeControl "5400+30"]

{[%evp 14,49,89,87,91,88,86,79,87,79,84,71,341,335,362,358,344,331,594,585,594,586,596,595,556,555,776,758,748,734,716,703,1158,1177,1257,1197,1935,1487]} 1. d4 {[%emt 1:31:00]} d5 {[%emt 1:31:00]} 2. Nf3 {[%emt 0:00:30]} Bf5 {[%emt 0:00:30]} 3. c4 {[%emt 0:00:30]} e6 {[%emt 0:00:30]} 4. Nc3 {[%emt 0:00:30]} c6 {[%emt 0:00:30]} 5. Qb3 {[%emt 0:00:30]} Qb6 {[%emt 0:00:30]} 6. c5 {[%emt 0:00:30]} Qxb3 {[%emt 0:00:30]} 7. axb3 {[%emt 0:00:30]} Na6 {[%emt 0:00:30] has lost popularity (7...Nd7).} 8. Bf4 {[%emt 0:00:30]} Nf6 {[%emt 0:00:30] [#] D11: Slav Defence: 3 Nf3 sidelines and 3...Nf6 4 e3 Bg4.} 9. Rxa6 $1 {[%emt 0:00:30]} bxa6 {[%emt 0:00:30]} 10. e3 {[%emt 0:00:30]} Nh5 {[%emt 0:00:30] White is better.} 11. Bc7 {[%emt 0:00:30] [#] White is more active.} Be7 $146 {[%emt 0:00:30]} ({Predecessor:} 11... Be4 12. Nxe4 dxe4 13. Nd2 Nf6 14. Bxa6 Nd5 15. Bg3 Nb4 16. Bc4 a5 17. Ke2 Be7 18. Nxe4 {1-0 (38) Leotard,C (2655)-Stull,N (2602) ICCF corr 2004}) 12. Bxa6 {[%emt 0:00:30] Threatens to win with Ne5.} Bd8 $2 {[%emt 0:00:30][%mdl 8192]} (12... Kd7 $16 13. Ba5 f6) 13. Bd6 $18 {[%emt 0:00:30] [#] Hoping for Bb7.} Be7 {[%emt 0:00:30]} 14. Bxe7 {[%emt 0:00:30]} Kxe7 {[%emt 0:00:30]} 15. Ne5 {[%emt 0:00:30]} Rhc8 $2 {[%emt 0:00:30]} (15... Nf6 {was called for.} 16. Nxc6+ Kd7) 16. Bxc8 {[%emt 0:00:30] White is clearly winning.} Rxc8 {[%emt 0:00:30]} 17. g4 {[%emt 0:00:30]} f6 {[%emt 0:00:30]} 18. Nxc6+ {[%emt 0:00:30]} ({Worse is} 18. gxh5 fxe5 19. dxe5 Rb8 $11) 18... Rxc6 {[%emt 0:00:30]} 19. gxf5 {[%emt 0:00:30][%mdl 4096] Endgame KRN-KRN} Rc8 {[%emt 0:00:30]} 20. b4 {[%emt 0:00:30]} a6 {[%emt 0:00:30]} 21. fxe6 {[%emt 0:00:30]} Kxe6 {[%emt 0:00:30]} 22. Kd2 {[%emt 0:00:30]} Rb8 {[%emt 0:00:30]} 23. Ra1 {[%emt 0:00:30]} Rxb4 24. Rxa6+ {[%emt 0:00:30]} Kf5 {[%emt 0:01:00]} 25. Rb6 {[%emt 0:00:30] Black did not feel at home in the position after the opening.  Weighted Error Value: White=0.00 (flawless) /Black=0.97} 1-0

[Event "3rd VIZAG GM-Open 2022"]
[Site "Visakapatnam"]
[Date "2022.06.13"]
[Round "3.16"]
[White "Pawar, Harshit"]
[Black "Neelotpal, Das"]
[Result "1/2-1/2"]
[ECO "B23"]
[WhiteElo "1961"]
[BlackElo "2431"]
[Annotator "TA"]
[PlyCount "63"]
[EventDate "2022.06.13"]
[EventType "swiss"]
[EventCountry "IND"]
[SourceTitle "playchess.com"]
[Source "ChessBase"]
[SourceQuality "1"]
[TimeControl "5400+30"]

{[%evp 9,63,0,0,0,0,0,18,3,15,30,20,12,39,8,17,16,24,18,28,23,35,9,74,19,74,74,77,74,77,73,72,62,88,75,76,80,88,88,93,95,95,82,79,56,56,56,65,57,66,63,83,72,72,69,54,55]} 1. e4 {[%emt 0:00:07]} c5 {[%emt 0:00:06]} 2. Nc3 {[%emt 0:00:05]} Nc6 {[%emt 0:00:04]} 3. Bb5 {[%emt 0:00:09]} Nd4 {[%emt 0:00:53]} 4. Bc4 {[%emt 0:00:23]} e6 {[%emt 0:02:46]} 5. Nge2 {[%emt 0:00:06]} Nf6 {[%emt 0:01:03]} 6. O-O {[%emt 0:00:13] B23: Closed Sicilian: Lines without g3.} a6 {[%emt 0:02:40]} 7. a4 {[%emt 0:03:24]} Nc6 {[%emt 0:15:54]} 8. d4 {[%emt 0:06:13] The position is equal.} cxd4 {[%emt 0:00:05]} 9. Nxd4 {[%emt 0:00:04]} d6 {[%emt 0:01:19]} 10. Be3 {[%emt 0:04:30]} Be7 {[%emt 0:00:24] [#]} 11. Bb3 $146 {[%emt 0:11:55]} ({Predecessor:} 11. Kh1 O-O 12. f4 Qc7 13. Bd3 Bd7 14. Qe1 Nb4 15. Qg3 Nxd3 16. cxd3 Kh8 17. Nf3 b5 18. e5 dxe5 19. fxe5 Nd5 20. Nxd5 exd5 21. Rac1 Qa5 22. e6 Bxe6 23. Bd4 Rg8 24. Ne5 Qxa4 25. Rxf7 Qxd4 26. Rxe7 Rae8 27. Rxe6 {1-0 (27) Polok,K (2089)-Khalafova,N (2130) Krakow 2011}) 11... O-O {[%emt 0:03:28]} 12. f4 {[%emt 0:01:47][%cal Bf2f4,Bf4f5][%mdl 32]} Bd7 {[%emt 0:00:29]} 13. f5 {[%emt 0:08:49][%cal Rf5e6]} e5 {[%emt 0:00:05]} 14. Nxc6 {[%emt 0:01:25]} Bxc6 {[%emt 0:05:24]} 15. Qd3 {[%emt 0:11:23]} Qa5 {[%emt 1:03:20]} (15... b5 $1 $11) 16. Rad1 {[%emt 0:07:33]} (16. Bg5 $16) 16... Rac8 {[%emt 0:00:00]} (16... Bd8 $11 {remains equal.}) 17. Bg5 $16 {[%emt 0:06:43]} Rfd8 {[%emt 0:00:00][%cal Od6d5]} 18. Bxf6 {[%emt 0:10:02]} Bxf6 {[%emt 0:00:00]} 19. Qf3 {[%emt 0:00:02]} b5 {[%emt 0:00:00]} 20. axb5 {[%emt 0:01:16]} axb5 {[%emt 0:00:00]} 21. Nd5 {[%emt 0:03:59]} Bxd5 {[%emt 0:00:00]} 22. Rxd5 {[%emt 0:00:17]} Rc5 {[%emt 0:00:00]} 23. Rd3 {[%emt 0:01:40]} Qa7 {[%emt 0:00:00]} 24. Kh1 {[%emt 0:00:38]} Rc6 {[%emt 0:00:00]} 25. Rfd1 {[%emt 0:00:46]} Ra6 {[%emt 0:00:00]} 26. Qe3 {[%emt 0:03:50]} Qxe3 {[%emt 0:00:00]} 27. Rxe3 {[%emt 0:00:03]} Rda8 {[%emt 0:00:00]} 28. Red3 {[%emt 0:00:35] White is more active.} Kf8 {[%emt 0:00:00]} 29. g3 {[%emt 0:00:42]} Ke7 {[%emt 0:00:00]} 30. Kg2 {[%emt 0:01:32]} Rc8 {[%emt 0:00:00]} 31. Kf3 {[%emt 0:00:29]} h5 {[%emt 0:00:00]} 32. h4 {[%emt 0:00:57] Weighted Error Value: White=0.09 (flawless) /Black=0.13 (very precise)} 1/2-1/2

[Event "3rd VIZAG GM-Open 2022"]
[Site "Visakapatnam"]
[Date "2022.06.13"]
[Round "3.17"]
[White "Majumder Shrayan"]
[Black "Audi Ameya"]
[Result "0-1"]
[ECO "E73"]
[WhiteElo "1741"]
[BlackElo "2389"]
[Annotator "TA"]
[PlyCount "146"]
[EventDate "2022.06.13"]
[EventType "swiss"]
[EventCountry "IND"]
[SourceTitle "playchess.com"]
[Source "ChessBase"]
[SourceQuality "1"]
[TimeControl "5400+30"]

{[%evp 10,146,51,50,40,0,0,-4,0,0,0,0,0,0,28,-14,60,64,61,0,132,103,131,67,148,152,152,157,163,75,75,85,77,77,77,77,77,79,76,68,73,68,74,75,75,76,82,65,72,80,80,17,16,42,34,14,19,8,12,8,14,0,0,0,0,0,8,8,8,-8,-8,-8,-8,-8,-8,-8,-8,-8,-8,-8,-8,-12,-16,-134,-141,-141,-129,-591,-457,-584,-569,-2156,-2037,-29956,-29951,-29954,-29956,-29958,-29959,-29959,-29956,-29955,-29957,-29954,-29953,-12850,0,0,0,0,0,0,0,-29939,-29947,-29954,-29957,-29979,-29979,-29979,-29976,-29976,-29977,-29977,-29978,-29978,-29979,-29980,-29980,-29979,-29979,-29984,-29985,-29985,-29986,-29986,-29987,-29987,-29988]} 1. d4 {[%emt 0:00:08]} Nf6 {[%emt 0:00:03]} 2. c4 {[%emt 0:00:12]} g6 {[%emt 0:00:06]} 3. Nc3 {[%emt 0:00:13]} Bg7 {[%emt 0:00:02]} 4. e4 {[%emt 0:00:13]} O-O {[%emt 0:00:16]} 5. Be2 {[%emt 0:00:13]} d6 {[%emt 0:00:21]} 6. Be3 {[%emt 0:00:11]} Na6 {[%emt 0:01:32] E73: King's Indian: Averbakh Variation without 6...c5.} 7. g4 {[%emt 0:00:32]} c5 {[%emt 0:00:24][%cal Of6g4]} 8. d5 {[%emt 0:00:08]} e6 {[%emt 0:00:17] The position is equal.} 9. g5 {[%emt 0:00:59] [#]} Nd7 $146 {[%emt 0:07:41]} ({Predecessor:} 9... Nh5 10. Bxh5 gxh5 11. Nge2 Re8 12. Nf4 exd5 13. Nfxd5 Bg4 14. f3 Be6 15. Qd2 Kh8 {0-1 (43) Santiago,Y (2476)-Kovalev,V (2648) Dubai 2018}) 10. dxe6 $1 {[%emt 0:11:34]} Nb6 {[%emt 0:00:02]} 11. exf7+ {[%emt 0:03:42]} Rxf7 {[%emt 0:00:02]} 12. Rc1 {[%emt 0:07:17]} Be6 {[%emt 0:00:41]} (12... Qe7 $11) 13. b3 $14 {[%emt 0:01:08]} Nb4 {[%emt 0:05:00]} 14. Qd2 {[%emt 0:13:17]} (14. h4 $1 $14) 14... Nc6 {[%emt 0:27:20]} (14... a5 $11) 15. f4 {[%emt 0:27:38]} Nd4 {[%emt 0:14:37]} 16. Nf3 {[%emt 0:09:20]} (16. h4 $1 $16) 16... Qf8 {[%emt 0:01:08]} (16... Nxe2 $14 17. Qxe2 (17. Kxe2 Qe7 $11) (17. Nxe2 Bh3 $14) 17... Qd7) 17. O-O {[%emt 0:01:46][%cal Re3d4]} ({Don't play} 17. Bxd4 cxd4 18. Nxd4 Bh3 $16) 17... Bh3 {[%emt 0:00:35]} 18. Rf2 {[%emt 0:02:40]} ({Inferior is} 18. Nxd4 cxd4 19. Bxd4 Bxd4+ 20. Qxd4 Bxf1 21. Rxf1 Rxf4 $17) 18... Re8 {[%emt 0:10:26]} 19. Nxd4 {[%emt 0:04:53]} ({But not} 19. Bxd4 cxd4 20. Nxd4 Bxd4 21. Qxd4 Rxf4 $16) (19. Bd3 $18 {has better winning chances.}) 19... cxd4 $16 {[%emt 0:01:29]} 20. Bxd4 {[%emt 0:00:06]} Bxd4 {[%emt 0:00:06]} 21. Qxd4 {[%emt 0:00:05][%cal Of4f5] Black must now prevent f5!} Rxf4 {[%emt 0:00:03] Strongly threatening ...Re5.} 22. Qe3 $1 {[%emt 0:00:43][%csl LRf4,LRh3]} Rxf2 {[%emt 0:01:47]} 23. Qxf2 {[%emt 0:00:05]} Re5 {[%emt 0:00:03]} 24. Qg3 {[%emt 0:01:55]} Qe7 {[%emt 0:00:44]} 25. Kh1 {[%emt 0:03:15]} Qxg5 {[%emt 0:04:27] [#]} 26. Rd1 {[%emt 0:00:10]} Qxg3 {[%emt 0:04:58]} 27. hxg3 {[%emt 0:00:06]} Nc8 {[%emt 0:00:11]} 28. g4 {[%emt 0:02:53]} h5 $1 {[%emt 0:00:02]} 29. gxh5 {[%emt 0:02:57]} gxh5 {[%emt 0:00:02]} 30. Rd5 {[%emt 0:02:35]} (30. Kh2 $16 Bd7 31. Kg3) 30... h4 {[%emt 0:01:01]} 31. Kh2 {[%emt 0:00:24]} Be6 {[%emt 0:01:34]} 32. Rd1 {[%emt 0:00:06]} Kg7 {[%emt 0:03:55]} 33. Rg1+ {[%emt 0:00:16]} Kf6 {[%emt 0:00:08]} 34. Bg4 {[%emt 0:00:23]} Ne7 {[%emt 0:09:03]} 35. Bxe6 {[%emt 0:01:08]} Rxe6 $11 {[%emt 0:01:22][%mdl 4096] Endgame KRN-KRN} 36. Kh3 {[%emt 0:02:33]} Ng6 {[%emt 0:01:05]} 37. Nd5+ {[%emt 0:00:37]} Kf7 {[%emt 0:00:37]} 38. Rf1+ {[%emt 0:00:25]} Kg7 {[%emt 0:00:04]} 39. Nf4 {[%emt 0:01:07]} Rxe4 {[%emt 0:00:16]} 40. Nxg6 {[%emt 0:00:06]} Kxg6 {[%emt 0:00:02] KR-KR} 41. Rd1 {[%emt 0:00:05]} Kg5 {[%emt 0:01:09]} 42. Rd5+ {[%emt 0:00:23]} Re5 {[%emt 0:00:04]} 43. Rxd6 {[%emt 0:00:15]} Re3+ {[%emt 0:00:04]} 44. Kh2 {[%emt 0:00:55]} Re2+ {[%emt 0:00:02]} 45. Kh3 {[%emt 0:00:07]} Rxa2 {[%emt 0:00:08] aiming for ...Rb2.} 46. Rd7 {[%emt 0:01:59]} (46. Rd5+ $1 $11 Kf6 47. Kxh4) 46... b6 $17 {[%emt 0:00:02] Threatens to win with ...Kf4.} 47. Rg7+ {[%emt 0:00:44]} Kf6 {[%emt 0:03:04]} 48. Rb7 {[%emt 0:00:27][%mdl 8192]} (48. Rd7 $17 {was the crucial defense.}) 48... Ke5 {[%emt 0:00:40]} 49. Rd7 {[%emt 0:00:51] [#]} Ra3 $1 {[%emt 0:01:14]} 50. Kxh4 {[%emt 0:00:24]} Rxb3 {[%emt 0:01:09]} 51. Rxa7 {[%emt 0:00:05]} Rb4 {[%emt 0:00:01]} 52. Kg3 {[%emt 0:01:05]} Kd4 {[%emt 0:02:44]} 53. Kf2 {[%emt 0:00:20]} Kxc4 {[%emt 0:00:10]} 54. Ke2 {[%emt 0:00:25]} Kc3 {[%emt 0:01:22]} 55. Rc7+ {[%emt 0:00:39]} Kb2 {[%emt 0:01:09]} 56. Kd3 {[%emt 0:00:14]} b5 {[%emt 0:00:46][%cal Bb6b5,Bb5b4,Bb4b3,Bb3b2][%mdl 32]} 57. Rb7 {[%emt 0:01:01]} Rb3+ $2 {[%emt 0:00:51]} ({Black should play} 57... Ka3 $19 {( -> ...Rb2)} 58. Kc3 Rb3+ 59. Kd2 Rb2+ 60. Ke1 b4) 58. Kd4 $11 {[%emt 0:00:37]} Ka3 {[%emt 0:00:43]} 59. Kc5 {[%emt 0:00:30]} b4 {[%emt 0:00:04]} 60. Ra7+ $1 {[%emt 0:00:11]} Kb2 {[%emt 0:00:06]} 61. Kc4 $2 {[%emt 0:01:05][%mdl 8192]} (61. Rd7 $11) 61... Ra3 {[%emt 0:00:28] Black mates.} 62. Rh7 {[%emt 0:00:07]} b3 {[%emt 0:00:10]} 63. Kd3 {[%emt 0:00:44]} Ka2 {[%emt 0:00:13]} 64. Rb7 {[%emt 0:00:28]} Ra8 {[%emt 0:00:30]} 65. Kc3 {[%emt 0:00:22]} Rc8+ {[%emt 0:00:02]} 66. Kd2 {[%emt 0:00:12]} b2 {[%emt 0:00:03]} 67. Ra7+ {[%emt 0:00:06]} Kb1 {[%emt 0:00:02]} 68. Rb7 {[%emt 0:00:07]} Rd8+ {[%emt 0:00:04]} 69. Ke2 {[%emt 0:00:05]} Rd5 {[%emt 0:00:04]} 70. Ke1 {[%emt 0:00:56]} Kc2 {[%emt 0:00:35]} 71. Rc7+ {[%emt 0:00:05]} Kb3 {[%emt 0:00:02]} 72. Rb7+ {[%emt 0:00:06]} Kc3 {[%emt 0:00:03]} 73. Ke2 {[%emt 0:00:27]} Rd4 {[%emt 0:00:07] Never resign too early!  Weighted Error Value: White=0.45/Black=0.22 (precise)} 0-1

[Event "3rd VIZAG GM-Open 2022"]
[Site "Visakapatnam"]
[Date "2022.06.13"]
[Round "3.18"]
[White "Chidvilash Sai Surapaneni"]
[Black "Aradhya, Garg"]
[Result "1/2-1/2"]
[ECO "C00"]
[WhiteElo "1912"]
[BlackElo "2275"]
[Annotator "NA RC"]
[PlyCount "112"]
[EventDate "2022.06.13"]
[EventType "swiss"]
[EventCountry "IND"]
[SourceTitle "playchess.com"]
[Source "ChessBase"]
[SourceQuality "1"]
[TimeControl "5400+30"]

1. c4 {[%emt 0:00:14]} e6 {[%emt 0:00:02]} 2. e4 {[%emt 0:00:13]} d5 {[%emt 0:00:07]} 3. cxd5 {[%emt 0:00:05]} exd5 {[%emt 0:00:04]} 4. exd5 {[%emt 0:00:10]} Nf6 {[%emt 0:00:07]} 5. Bb5+ {[%emt 0:00:05]} Nbd7 {[%emt 0:00:17]} 6. Nc3 {[%emt 0:01:03]} Bd6 {[%emt 0:07:49]} 7. Nf3 {[%emt 0:01:15]} O-O {[%emt 0:00:08]} 8. O-O {[%emt 0:00:20]} Nb6 {[%emt 0:00:17]} 9. d4 {[%emt 0:00:40]} Nbxd5 {[%emt 0:05:08]} 10. Bg5 {[%emt 0:12:05]} h6 {[%emt 0:12:19]} 11. Bh4 {[%emt 0:01:26]} Nf4 {[%emt 0:11:46]} 12. Qc2 {[%emt 0:06:02]} Ng6 {[%emt 0:01:09]} 13. Bg3 {[%emt 0:00:55]} Bxg3 {[%emt 0:01:22]} 14. hxg3 {[%emt 0:01:54]} Bg4 {[%emt 0:56:55]} 15. Rad1 {[%emt 0:11:05]} c6 {[%emt 0:00:00]} 16. Bc4 {[%emt 0:00:12]} Ne7 {[%emt 0:00:00]} 17. Be2 {[%emt 0:01:01]} Ned5 {[%emt 0:00:00]} 18. Ne5 {[%emt 0:00:36]} Bxe2 {[%emt 0:00:00]} 19. Nxe2 {[%emt 0:02:07]} Re8 {[%emt 0:00:00]} 20. Rfe1 {[%emt 0:00:50]} Re7 {[%emt 0:00:00]} 21. Nc1 {[%emt 0:06:50]} Qc7 {[%emt 0:00:00]} 22. Ncd3 {[%emt 0:52:22]} Rae8 {[%emt 0:00:00]} 23. a3 {[%emt 0:00:00]} Nd7 {[%emt 0:00:00]} 24. Nxd7 {[%emt 0:00:00]} Rxe1+ {[%emt 0:00:00]} 25. Rxe1 {[%emt 0:00:00]} Rxe1+ {[%emt 0:00:00]} 26. Nxe1 {[%emt 0:00:00]} Qxd7 {[%emt 0:00:00]} 27. Nf3 {[%emt 0:00:00]} g6 {[%emt 0:00:00]} 28. Ne5 {[%emt 0:00:00]} Qe7 {[%emt 0:00:00]} 29. Qa4 {[%emt 0:00:00]} a6 {[%emt 0:00:00]} 30. Qb3 {[%emt 0:00:00]} Kg7 {[%emt 0:00:00]} 31. Qf3 {[%emt 0:00:00]} Nc7 {[%emt 0:00:00]} 32. Qd3 {[%emt 0:00:00]} Qe6 {[%emt 0:00:00]} 33. Nf3 {[%emt 0:00:00]} Nb5 {[%emt 0:00:00]} 34. Qd2 {[%emt 0:00:00]} g5 {[%emt 0:00:00]} 35. Qb4 {[%emt 0:00:00]} Qd6 {[%emt 0:00:00]} 36. Qd2 {[%emt 0:00:00]} Qd5 {[%emt 0:00:00]} 37. Qe3 {[%emt 0:00:00]} Qe6 {[%emt 0:00:00]} 38. Qd2 {[%emt 0:00:00]} Nd6 {[%emt 0:00:00]} 39. Qb4 {[%emt 0:00:00]} f6 {[%emt 0:00:00]} 40. Qa5 {[%emt 0:00:00]} Qb3 {[%emt 0:00:00]} 41. Qc5 {[%emt 0:00:00]} Nf7 {[%emt 0:00:00]} 42. Qc1 {[%emt 0:00:00]} a5 {[%emt 0:02:04]} 43. Nd2 {[%emt 0:00:00]} Qd5 {[%emt 0:01:39]} 44. Nc4 {[%emt 0:00:00]} Nd6 {[%emt 0:01:51]} 45. Nxd6 {[%emt 0:00:00]} Qxd6 {[%emt 0:00:02]} 46. Qc4 {[%emt 0:00:00]} Qd5 {[%emt 0:00:23]} 47. Qe2 {[%emt 0:00:00]} Kf7 {[%emt 0:00:47]} 48. Qh5+ {[%emt 0:00:00]} Kg7 {[%emt 0:00:01]} 49. Qe2 {[%emt 0:00:00]} Kf8 {[%emt 0:00:46]} 50. Qh5 {[%emt 0:00:00]} Qxd4 {[%emt 0:00:07]} 51. Qxh6+ {[%emt 0:00:00]} Ke8 {[%emt 0:00:07]} 52. Qh8+ {[%emt 0:00:00]} Kd7 {[%emt 0:00:03]} 53. Qh7+ {[%emt 0:00:00]} Kc8 {[%emt 0:00:39]} 54. Qf5+ {[%emt 0:00:00]} Kb8 {[%emt 0:00:08]} 55. Qxa5 {[%emt 0:00:00]} Qxb2 {[%emt 0:00:25]} 56. Qd8+ {[%emt 0:00:00]} Ka7 {[%emt 0:00:06]} 1/2-1/2